bitfinex-derivatives/quotes_SOLF0:USTF0_20241024
["timestamp","ask_amount","ask_price","bid_price","bid_amount"]
[1729791817026,2.842,176.05,176.03,1.42159727]
[1729791817217,2.842,176.05,176.03,2.8422]
[1729791817715,2.842,176.05,176.02,2.8422]
[1729791817916,2.842,176.05,176.03,1.42158973]
[1729791818223,4.26,176.11,176.01,4.26]
[1729791818430,2.8418,176.06,176.02,1.42158923]
[1729791818926,2.8418,176.06,176.03,4.26368923]
[1729791819122,2.8418,176.06,176.03,2.8421]
[1729791819421,7.86149353,176.07,176.03,2.8421]
[1729791819627,2.8419,176.05,176.03,2.8421]
[1729791822125,7.86149353,176.04,175.99,2.8428]
[1729791822327,7.86149353,176.02,176.0,1.42178609]
[1729791822624,7.86149353,176.02,176.01,1.42178609]
[1729791823124,10.70389353,176.02,175.99,2.8428]
[1729791823324,10.70389353,176.02,176.0,1.42183211]
[1729791823527,10.70389353,176.02,175.99,2.8428]
[1729791823717,2.8424,176.02,176.0,1.42183211]
[1729791823916,10.70389353,176.02,175.99,2.8428]
[1729791824216,10.70389353,176.02,176.0,1.42182576]
[1729791824417,10.70389353,176.02,175.99,2.8428]
[1729791824627,10.70389353,176.02,176.0,1.42182463]
[1729791824825,10.70389353,176.02,175.99,2.8428]
[1729791825124,10.70389353,176.02,176.0,1.42183098]
[1729791825323,10.70389353,176.02,175.99,2.8428]
[1729791825520,10.70389353,176.02,176.0,1.42183211]
[1729791825715,10.70389353,176.02,175.99,2.8428]
[1729791825915,10.70389353,176.02,176.0,1.42183211]
[1729791826121,10.70389353,176.02,175.98,5.4322]
[1729791826322,2.8424,176.02,175.99,4.2645349]
[1729791826523,2.8424,176.02,176.0,1.4217349]
[1729791826722,2.8424,176.02,176.01,1.4217349]
[1729791829724,7.11548832,176.07,176.01,1.4217349]
[1729791829725,4.26,176.07,176.01,1.4217349]
[1729791830022,7.86149353,176.05,176.02,1.4217349]
[1729791830325,7.86149353,176.05,176.03,4.2639349]
[1729791830527,7.86149353,176.05,176.03,2.8422]
[1729791831324,7.86149353,176.05,176.0,7.86149353]
[1729791831525,7.86149353,176.05,176.01,1.42156182]
[1729791831723,7.86149353,176.02,176.01,1.42156182]
[1729791832027,7.86149353,176.02,176.01,1.42159957]
[1729791835333,7.86149353,176.02,176.0,2.8426]
[1729791835935,7.86149353,176.02,176.01,1.42161784]
[1729791836238,7.86149353,176.04,176.02,2.8423]
[1729791836732,2.842,176.05,176.02,2.8423]
[1729791836933,2.842,176.05,175.99,10.28239353]
[1729791837135,7.86149353,176.04,176.0,1.42161952]
[1729791837331,10.70359353,176.04,176.01,1.42161952]
[1729791837639,10.70359353,176.04,176.02,1.42161952]
[1729791837827,10.70359353,176.04,176.01,2.8424]
[1729791838027,10.70359353,176.04,176.02,1.42161304]
[1729791838334,10.70359353,176.04,176.01,2.8424]
[1729791838634,10.70359353,176.04,176.02,1.42161304]
[1729791838837,10.70359353,176.04,176.01,2.8424]
[1729791839030,10.70359353,176.04,176.02,1.42161304]
[1729791839230,10.70359353,176.04,176.01,2.8424]
[1729791839431,10.70359353,176.04,175.99,10.28239353]
[1729791839432,10.70359353,176.04,176.02,4.26391304]
[1729791839625,2.8425,176.02,175.99,1.2578]
[1729791839831,2.8425,176.02,176.0,1.42162388]
[1729791840031,2.8425,176.02,176.01,1.42162388]
[1729791840632,10.70399353,176.02,176.01,1.42162388]
[1729791843931,10.70399353,176.02,176.01,1.42165963]
[1729791845446,10.70399353,176.02,176.01,1.42166034]
[1729791848636,10.70399353,176.02,175.97,12.10149353]
[1729791848637,10.70399353,176.02,175.97,2.8431]
[1729791848944,7.86149353,176.0,175.98,1.42172533]
[1729791849146,7.86149353,176.0,175.96,7.86149353]
[1729791849147,7.86149353,176.0,175.99,1.42172533]
[1729791850340,2.8428,176.0,175.99,1.42172533]
[1729791850541,4.24,176.06,175.99,1.42172533]
[1729791850748,7.86149353,176.02,176.0,1.42172533]
[1729791850934,4.24,176.06,176.0,9.28321886]
[1729791851140,7.86149353,176.06,176.01,9.28313601]
[1729791851444,10.70329353,176.06,176.03,2.8421]
[1729791851637,7.86149353,176.06,176.03,2.8421]
[1729791852540,2.842,176.05,176.02,2.8423]
[1729791852739,7.86149353,176.06,176.02,2.8423]
[1729791853140,2.8419,176.05,176.03,1.42157182]
[1729791853445,2.8419,176.05,176.02,2.8423]
[1729791853650,2.8419,176.05,176.03,1.42156547]
[1729791853841,2.8419,176.05,176.02,2.8423]
[1729791854042,2.8419,176.05,176.03,1.42156547]
[1729791854245,2.8419,176.05,176.02,2.8423]
[1729791854540,2.8419,176.05,176.03,1.42156547]
[1729791854744,2.8419,176.05,176.02,2.8423]
[1729791854939,2.8421,176.04,176.03,1.42157134]
[1729791856148,7.86149353,176.05,175.95,4.22]
[1729791856149,12.08149353,176.05,175.95,4.22]
[1729791856453,7.86149353,175.99,175.95,4.22]
[1729791856640,2.8431,175.98,175.95,7.0634]
[1729791856845,2.8431,175.98,175.95,4.22]
[1729791857039,7.86149353,175.99,175.95,4.22]
[1729791857252,10.70439353,175.99,175.96,2.8432]
[1729791861553,2.8423,176.03,176.0,2.8426]
[1729791861749,4.24,176.05,175.98,7.86149353]
[1729791862051,7.86149353,176.03,175.98,7.86149353]
[1729791862446,10.70369353,176.03,175.98,7.86149353]
[1729791862651,7.86149353,176.03,175.99,7.86149353]
[1729791863152,10.70379353,176.03,176.0,2.8426]
[1729791865057,5.4511,176.08,175.95,4.22]
[1729791865251,2.8428,176.0,175.97,2.8432]
[1729791865850,2.8428,176.0,175.96,12.10149353]
[1729791866050,2.8428,176.0,175.98,2.843]
[1729791868161,2.8428,176.0,175.99,1.42176101]
[1729791870652,2.8423,176.03,176.01,2.8425]
[1729791871056,7.86149353,176.04,175.99,7.86149353]
[1729791871252,7.86149353,176.04,176.0,1.4216547]
[1729791871464,10.70359353,176.04,176.02,2.8424]
[1729791873665,10.70359353,176.04,176.03,1.42161262]
[1729791875864,10.70359353,176.04,175.99,7.86149353]
[1729791875865,10.70359353,176.04,176.01,2.8425]
[1729791876164,10.70359353,176.04,176.02,1.42156806]
[1729791876368,10.70359353,176.04,176.03,1.42156806]
[1729791877158,2.8421,176.04,176.03,1.42156806]
[1729791877363,10.70359353,176.04,176.03,1.42156806]
[1729791877566,2.8423,176.03,176.0,2.8426]
[1729791877770,2.8423,176.03,176.01,1.42162013]
[1729791878073,10.70379353,176.03,176.02,1.42162013]
[1729791879774,10.70379353,176.03,176.01,2.8425]
[1729791879979,10.70379353,176.03,176.02,1.42153674]
[1729791883378,10.70379353,176.03,176.0,2.8426]
[1729791883881,10.70379353,176.03,176.01,1.42158798]
[1729791884082,10.70379353,176.03,176.02,1.42158798]
[1729791887186,10.70379353,176.03,176.01,2.8425]
[1729791887593,10.70379353,176.03,176.02,1.4215626]
[1729791890986,10.70379353,176.03,175.99,2.8428]
[1729791890987,2.8425,176.02,175.99,2.8428]
[1729791891490,2.8425,176.02,176.0,1.42163717]
[1729791891690,2.8425,176.02,176.01,1.42163717]
[1729791893992,2.8425,176.02,176.01,1.42162812]
[1729791894588,2.8425,176.02,176.0,2.8427]
[1729791894788,2.8425,176.02,176.01,1.42165123]
[1729791895892,7.86149353,176.02,175.94,1.2111]
[1729791896092,7.86149353,176.0,175.95,4.22]
[1729791896289,7.86149353,176.0,175.96,1.4217588]
[1729791896495,2.843,175.99,175.96,4.2649588]
[1729791896690,2.843,175.99,175.97,1.4217588]
[1729791897000,10.70449353,175.99,175.98,1.4217588]
[1729791897700,10.70449353,175.99,175.98,1.42182015]
[1729791899000,10.70449353,175.99,175.98,1.42181891]
[1729791900803,2.77154829,176.05,175.98,1.42181891]
[1729791901000,7.86149353,176.02,175.99,1.42181891]
[1729791901292,7.86149353,176.02,175.95,4.22]
[1729791901293,10.70419353,176.01,176.0,1.42182144]
[1729791903201,2.8427,176.01,176.0,1.42182144]
[1729791904495,2.8427,176.01,175.98,2.8429]
[1729791904695,2.8427,176.01,175.99,1.42187685]
[1729791904997,2.8427,176.01,176.0,1.42187685]
[1729791906000,7.86149353,176.02,176.0,1.42187685]
[1729791906295,2.8425,176.02,176.01,1.42175931]
[1729791909396,7.86149353,176.02,175.94,5.4311]
[1729791909596,7.04458139,176.07,175.95,2.8435]
[1729791909597,7.86149353,175.97,175.95,2.8435]
[1729791909992,2.8431,175.98,175.96,2.8434]
[1729791910404,10.70439353,175.99,175.96,2.8434]
[1729791910994,2.8426,176.01,175.96,7.86149353]
[1729791911204,7.86149353,176.02,175.96,7.86149353]
[1729791911795,2.8426,176.01,175.98,2.8429]
[1729791912803,2.8426,176.01,175.96,7.86149353]
[1729791913001,2.8421,176.04,175.99,7.86149353]
[1729791913205,7.86149353,176.04,175.99,12.08149353]
[1729791913502,10.70409353,176.01,175.99,4.22]
[1729791913710,10.70409353,176.01,175.96,12.08149353]
[1729791913896,10.70409353,176.01,175.98,2.8429]
[1729791914302,7.86149353,176.0,175.95,7.86149353]
[1729791914607,10.70419353,176.0,175.97,2.843]
[1729791914803,7.86149353,176.0,175.96,4.22]
[1729791915004,2.843,175.99,175.96,7.0632]
[1729791915901,2.843,175.99,175.97,2.8431]
[1729791916408,2.8431,175.98,175.96,4.22]
[1729791916604,7.86149353,175.97,175.94,1.2111]
[1729791916903,2.8435,175.96,175.94,1.2111]
[1729791917805,2.8435,175.96,175.93,4.0454]
[1729791917806,7.86149353,175.95,175.93,2.8438]
[1729791918207,7.86149353,175.95,175.92,1.198]
[1729791918208,2.8438,175.94,175.92,1.198]
[1729791919199,7.86149353,175.95,175.92,1.198]
[1729791919510,10.70509353,175.95,175.92,1.198]
[1729791920310,10.70509353,175.95,175.92,4.0419]
[1729791921414,10.70509353,175.95,175.93,1.42213535]
[1729791921609,10.70509353,175.95,175.94,1.42213535]
[1729791924210,10.70509353,175.95,175.9,4.22]
[1729791924211,7.86149353,175.95,175.89,2.8445]
[1729791924417,7.86149353,175.9,175.86,5.4958]
[1729791924618,2.8448,175.88,175.87,1.42247276]
[1729791924917,7.86149353,175.89,175.87,1.42247276]
[1729791925117,7.86149353,175.89,175.88,1.42247276]
[1729791925118,10.70599353,175.89,175.88,1.42247276]
[1729791925515,4.22,175.94,175.88,1.42247276]
[1729791925819,4.22,175.94,175.86,7.86149353]
[1729791925820,7.86149353,175.92,175.86,7.86149353]
[1729791926118,7.86149353,175.92,175.87,1.42244739]
[1729791926311,2.8442,175.91,175.88,4.26694739]
[1729791926507,4.22,175.96,175.89,9.28394092]
[1729791926811,7.86149353,175.94,175.9,1.42244739]
[1729791927118,2.8439,175.93,175.91,1.42227858]
[1729791927417,2.8439,175.93,175.92,1.42227858]
[1729791927822,10.70539353,175.93,175.92,1.42227858]
[1729791929323,7.86149353,175.93,175.89,2.8444]
[1729791929525,7.86149353,175.93,175.9,1.42229265]
[1729791929526,2.8441,175.92,175.9,1.42229265]
[1729791929714,2.8441,175.92,175.91,1.42229265]
[1729791930421,7.10331612,175.96,175.91,4.26649265]
[1729791930422,2.8438,175.94,175.91,4.26649265]
[1729791930620,10.70529353,175.94,175.92,1.42229265]
[1729791930824,7.86149353,175.94,175.89,7.86149353]
[1729791931123,2.8439,175.93,175.9,4.26647849]
[1729791931421,7.86149353,175.94,175.91,1.42227849]
[1729791931621,10.70529353,175.94,175.92,1.42227849]
[1729791931823,10.70529353,175.94,175.91,2.8441]
[1729791932017,7.86149353,175.92,175.88,1.2409]
[1729791932218,2.8443,175.9,175.89,1.42229376]
[1729791933023,2.8447,175.88,175.85,2.8451]
[1729791933223,10.70619353,175.88,175.86,1.42251975]
[1729791933424,10.70619353,175.88,175.87,1.42251975]
[1729791934122,7.86149353,175.88,175.87,1.42251975]
[1729791935327,7.86149353,175.89,175.87,4.26731975]
[1729791935626,7.86149353,175.89,175.88,1.42251975]
[1729791936426,7.86149353,175.89,175.87,2.8448]
[1729791936624,2.8442,175.91,175.87,2.8448]
[1729791936824,7.86149353,175.92,175.87,7.86149353]
[1729791937127,10.70519353,175.94,175.9,7.86149353]
[1729791937427,7.86149353,175.96,175.91,1.42225814]
[1729791937725,7.86149353,175.96,175.92,2.8439]
[1729791938427,12.29327287,175.98,175.92,2.8439]
[1729791939322,2.8437,175.94,175.92,2.8439]
[1729791941131,4.22,175.99,175.91,1.2277]
[1729791941320,5.6828,176.09,175.93,4.22]
[1729791941321,16.51327287,176.02,175.93,4.22]
[1729791941520,16.51327287,176.02,175.94,1.42210869]
[1729791941716,16.51327287,176.02,175.93,4.22]
[1729791941922,16.51327287,176.02,175.94,1.42199706]
[1729791942230,16.51327287,176.02,175.93,4.22]
[1729791942231,2.843,175.99,175.93,4.22]
[1729791942428,16.51327287,176.02,175.94,1.4219429]
[1729791942727,16.51327287,176.02,175.93,4.22]
[1729791942929,2.843,175.99,175.94,1.4219429]
[1729791943229,12.29327287,176.02,175.95,1.42191672]
[1729791943425,2.8426,176.01,175.93,4.22]
[1729791943729,2.8426,176.01,175.94,1.42189444]
[1729791943925,2.8426,176.01,175.98,2.843]
[1729791944325,12.29327287,176.04,175.93,4.22]
[1729791944619,12.29327287,176.04,175.94,1.42181278]
[1729791944820,12.29327287,176.04,175.95,1.42181278]
[1729791945027,2.8426,176.01,175.98,2.8429]
[1729791946238,12.29327287,176.01,175.97,1.42177581]
[1729791946530,12.29327287,176.01,175.94,4.22]
[1729791946721,2.8431,175.98,175.95,4.26542199]
[1729791946925,2.8431,175.98,175.94,4.22]
[1729791947125,12.29327287,176.01,175.95,1.42194036]
[1729791947328,2.843,175.99,175.96,2.8433]
[1729791949130,2.8429,175.99,175.94,4.22]
[1729791949338,2.8429,175.99,175.95,1.42193542]
[1729791949534,12.29327287,176.01,175.96,1.42193542]
[1729791949729,12.29327287,176.01,175.94,4.22]
[1729791949930,2.8429,175.99,175.96,2.8432]
[1729791950232,12.29327287,176.01,175.94,4.22]
[1729791950431,2.8431,175.98,175.95,4.26534361]
[1729791950727,2.8431,175.98,175.95,2.8434]
[1729791950929,2.8433,175.97,175.94,7.0636]
[1729791951135,2.8433,175.97,175.95,1.42194558]
[1729791951333,2.8433,175.97,175.94,4.22]
[1729791951530,2.8433,175.97,175.95,1.42196974]
[1729791951738,12.29327287,175.98,175.91,5.4477]
[1729791951934,12.29327287,175.98,175.92,1.42197509]
[1729791952231,12.29327287,175.98,175.93,1.42197509]
[1729791952424,2.8432,175.97,175.94,1.42197509]
[1729791952629,2.8432,175.97,175.91,5.4477]
[1729791952835,2.8432,175.97,175.92,1.42198426]
[1729791953034,2.8432,175.97,175.93,1.42198426]
[1729791953235,2.8434,175.96,175.94,1.42198426]
[1729791953431,2.8434,175.96,175.95,1.42198426]
[1729791954739,12.29327287,175.98,175.95,1.42198426]
[1729791954940,2.8432,175.97,175.95,2.8435]
[1729791955135,2.8432,175.97,175.91,5.4477]
[1729791955334,2.8432,175.97,175.92,1.42198053]
[1729791955537,2.8432,175.97,175.94,2.8436]
[1729791955738,2.8432,175.97,175.95,1.42198053]
[1729791956040,2.8432,175.97,175.94,2.8436]
[1729791956435,12.29327287,176.01,175.95,1.42197542]
[1729791956741,16.51327287,176.03,175.92,12.29327287]
[1729791957038,12.29327287,176.03,175.93,1.42196368]
[1729791957239,12.29327287,176.03,175.96,2.8433]
[1729791958233,2.843,175.99,175.96,2.8433]
[1729791960838,2.8414,176.09,175.95,4.22]
[1729791961037,2.78101709,176.16,176.03,12.29327287]
[1729791961235,12.29327287,176.13,175.96,1.2255]
[1729791961437,12.29327287,176.11,175.97,5.748]
[1729791961637,12.29327287,176.13,176.03,12.29327287]
[1729791961841,2.841,176.11,176.06,2.8417]
[1729791962031,12.29327287,176.13,176.06,2.8417]
[1729791962235,12.29327287,176.13,176.04,4.52]
[1729791962433,10.69474004,176.11,176.06,10.69544004]
[1729791962840,7.85374004,176.11,176.06,2.8417]
[1729791963137,7.85374004,176.11,176.06,10.69544004]
[1729791964145,2.8411,176.1,176.06,10.69544004]
[1729791964353,2.8411,176.1,176.06,2.8417]
[1729791964643,12.27175554,176.14,176.07,2.8416]
[1729791964848,12.27175554,176.14,176.04,5.7546]
[1729791965438,2.8409,176.11,176.05,1.219]
[1729791965642,12.27175554,176.14,176.05,1.219]
[1729791965843,2.8407,176.13,176.05,1.219]
[1729791966052,12.27175554,176.16,176.05,13.49075554]
[1729791966250,12.27175554,176.16,176.08,2.8414]
[1729791966544,3.14953255,176.2,176.09,4.52]
[1729791966545,12.27175554,176.18,176.09,4.52]
[1729791966946,2.8402,176.16,176.12,2.8407]
[1729791967348,2.8402,176.16,176.13,2.8406]
[1729791967646,15.11165554,176.18,176.09,4.52]
[1729791967849,12.27175554,176.18,176.09,4.52]
[1729791968050,12.27175554,176.18,176.13,2.8405]
[1729791968253,12.27175554,176.18,176.13,7.6405]
[1729791969350,12.27175554,176.18,176.13,4.8]
[1729791970950,12.27175554,176.18,176.13,7.6405]
[1729791970951,2.8403,176.16,176.13,7.6405]
[1729791972755,2.8401,176.17,176.13,7.6406]
[1729791974056,12.27175554,176.18,176.13,7.6406]
[1729791974250,2.8401,176.16,176.13,7.6406]
[1729791977255,2.87229543,176.21,176.15,2.8402]
[1729791977459,16.77175554,176.22,176.15,2.8402]
[1729791977646,16.77175554,176.22,176.13,4.8]
[1729791978053,2.84,176.17,176.14,2.8403]
[1729791978646,2.8398,176.18,176.15,2.8402]
[1729791979947,12.27175554,176.22,176.13,6.0166]
[1729791980151,12.27175554,176.24,176.14,13.52825554]
[1729791980448,2.8395,176.21,176.17,2.8398]
[1729791980650,12.27175554,176.24,176.18,4.8]
[1729791982161,2.8396,176.2,176.18,4.8]
[1729791982460,12.27175554,176.24,176.18,4.8]
[1729791982461,2.8396,176.19,176.18,4.8]
[1729791982851,12.27175554,176.22,176.14,1.2565]
[1729791983049,2.8401,176.17,176.15,4.8]
[1729791983952,2.8401,176.17,176.14,4.0969]
[1729791984355,2.8401,176.17,176.15,4.8]
[1729791984656,2.8395,176.21,176.18,2.8398]
[1729791984851,2.8395,176.21,176.19,4.8]
[1729791986056,15.16375991,176.26,176.19,4.8]
[1729791986261,2.8395,176.2,176.19,4.8]
[1729791988462,12.27175554,176.24,176.19,4.8]
[1729791988656,2.8394,176.21,176.19,4.8]
[1729791988854,12.27175554,176.24,176.19,4.8]
[1729791990362,2.8395,176.2,176.19,4.8]
[1729791991159,12.27175554,176.24,176.14,1.2565]
[1729791991361,12.27175554,176.21,176.14,1.2565]
[1729791991665,12.27175554,176.21,176.15,4.8]
[1729791991857,12.27175554,176.19,176.15,4.8]
[1729791992261,12.27175554,176.19,176.13,1.2166]
[1729791992262,12.27175554,176.19,176.14,4.8]
[1729791992565,2.8402,176.16,176.14,4.8]
[1729791992864,2.8399,176.18,176.14,4.8]
[1729791993066,12.27175554,176.19,176.14,4.8]
[1729791993559,2.8402,176.16,176.14,4.8]
[1729791996062,2.8403,176.15,176.14,4.8]
[1729791996859,4.72,176.27,176.14,4.8]
[1729791997059,12.27175554,176.23,176.14,4.8]
[1729791997367,2.8399,176.18,176.14,4.8]
[1729791997565,12.27175554,176.23,176.14,4.8]
[1729791997868,2.8394,176.21,176.14,7.6404]
[1729791998068,12.27175554,176.23,176.14,4.8]
[1729791998269,12.27175554,176.23,176.15,1.2383]
[1729791998767,2.8397,176.19,176.16,2.8401]
[1729792002871,2.8403,176.16,176.15,4.72]
[1729792003569,2.8404,176.15,176.13,5.9366]
[1729792003769,12.27175554,176.17,176.09,1.1767]
[1729792003962,12.27175554,176.15,176.1,4.72]
[1729792004163,2.8407,176.13,176.1,7.561]
[1729792005569,2.8411,176.1,176.09,4.72]
[1729792006271,2.8411,176.1,176.07,5.2529]
[1729792006472,2.8411,176.1,176.08,4.72]
[1729792009068,2.8411,176.1,176.08,7.5614]
[1729792009573,12.27175554,176.13,176.07,2.4114]
[1729792010479,12.27175554,176.11,176.02,1.1751]
[1729792010682,12.27175554,176.08,176.03,4.72]
[1729792011265,2.8419,176.06,176.03,7.5621]
[1729792011465,12.27175554,176.08,176.03,4.72]
[1729792011664,12.27175554,176.08,176.02,1.1751]
[1729792011874,2.8423,176.03,176.01,4.72]
[1729792012075,12.27175554,176.06,176.01,4.72]
[1729792012270,12.27175554,176.06,176.0,4.72]
[1729792012476,12.27175554,176.06,175.97,6.6169322]
[1729792012679,12.27175554,176.03,175.97,7.0726]
[1729792012880,2.8425,176.02,175.97,7.0726]
[1729792013385,2.8425,176.02,175.98,4.72]
[1729792014071,2.8425,176.02,175.98,7.5629]
[1729792014581,2.8425,176.02,175.99,2.8428]
[1729792015482,2.8423,176.03,175.99,2.8428]
[1729792017877,2.8425,176.02,175.99,2.8428]
[1729792018682,12.27175554,176.06,175.99,2.8428]
[1729792018872,2.79925617,176.23,175.98,4.72]
[1729792019073,12.27175554,176.09,175.98,6.14127591]
[1729792019278,2.8419,176.05,175.98,6.14127591]
[1729792019880,2.8419,176.05,176.02,2.8423]
[1729792020382,12.27175554,176.06,175.99,4.72]
[1729792020585,12.27175554,176.04,175.97,7.0726]
[1729792020881,2.8424,176.02,175.97,2.3526]
[1729792021084,12.27175554,176.04,175.95,1.42151598]
[1729792021085,12.27175554,175.99,175.95,1.42151598]
[1729792021286,12.27175554,175.99,175.94,4.72]
[1729792022478,12.27175554,175.99,175.94,7.5635]
[1729792023179,2.8431,175.98,175.94,4.72]
[1729792023383,12.27175554,175.99,175.94,4.72]
[1729792024387,2.8432,175.97,175.94,7.5637]
[1729792024784,12.27175554,175.99,175.94,4.72]
[1729792026374,2.8432,175.97,175.94,7.5636]
[1729792027988,2.8437,175.94,175.91,2.8442]
[1729792028188,12.27175554,175.97,175.9,2.521]
[1729792028189,12.27175554,175.97,175.92,4.78]
[1729792029394,12.27175554,175.95,175.88,1.4218082]
[1729792029700,12.27175554,175.95,175.88,2.8445]
[1729792030585,2.8441,175.92,175.88,2.8445]
[1729792030782,12.27175554,175.93,175.86,1.4218082]
[1729792030987,12.27175554,175.93,175.85,8.3717]
[1729792030988,2.8443,175.91,175.85,8.3717]
[1729792031785,12.27175554,175.97,175.87,12.27175554]
[1729792032294,17.05175554,175.99,175.92,2.8439]
[1729792032895,2.8435,175.96,175.92,2.8439]
[1729792033193,17.05175554,175.99,175.91,12.27175554]
[1729792033194,12.27175554,175.99,175.91,12.27175554]
[1729792033394,2.8432,175.97,175.94,2.8436]
[1729792036687,2.8432,175.97,175.93,2.8438]
[1729792036884,2.8435,175.96,175.92,2.4427]
[1729792037092,12.27175554,175.99,175.89,1.4219353]
[1729792037288,4.78,176.02,175.89,4.78]
[1729792037289,12.27175554,175.96,175.89,4.78]
[1729792037491,2.8439,175.93,175.89,4.78]
[1729792038095,12.27175554,175.96,175.89,4.78]
[1729792038293,2.8441,175.92,175.89,4.78]
[1729792038489,12.27175554,175.94,175.86,8.5436353]
[1729792038798,2.8443,175.91,175.86,7.1217]
[1729792039694,2.8443,175.91,175.88,2.8445]
[1729792041598,2.8443,175.9,175.88,2.8446]
[1729792041894,12.27175554,175.92,175.86,7.1217]
[1729792042399,2.8444,175.9,175.86,7.1217]
[1729792043100,12.27175554,175.92,175.86,7.1217]
[1729792043399,12.27175554,175.92,175.88,2.8445]
[1729792043786,2.8443,175.91,175.87,2.8447]
[1729792043992,12.27175554,175.95,175.86,7.1217]
[1729792044192,8.48453537,176.04,175.87,12.27175554]
[1729792044391,566.0,176.29,175.87,12.27175554]
[1729792044392,2.843,175.99,175.9,12.27175554]
[1729792044694,2.843,175.99,175.91,4.78]
[1729792046091,4.78,176.03,175.91,4.78]
[1729792046291,12.27175554,176.02,175.92,1.1879]
[1729792046798,2.8428,176.0,175.93,2.3365]
[1729792047189,12.27175554,176.0,175.93,2.3365]
[1729792047397,2.8431,175.98,175.95,2.8434]
[1729792048198,12.27175554,176.0,175.93,2.3365]
[1729792048394,2.843,175.99,175.93,2.3365]
[1729792049199,12.27175554,176.0,175.93,2.3365]
[1729792049401,2.8431,175.98,175.96,2.8434]
[1729792050801,15.11425554,176.02,175.95,4.78]
[1729792051002,12.27175554,176.02,175.95,4.78]
[1729792051302,2.8426,176.01,175.98,2.8429]
[1729792051501,2.8426,176.01,175.95,4.78]
[1729792051804,12.27175554,176.02,175.95,4.78]
[1729792052004,17.05175554,176.05,175.95,4.78]
[1729792052208,12.27175554,176.05,175.95,17.05175554]
[1729792052399,12.27175554,176.05,175.95,4.78]
[1729792052705,12.27175554,176.01,175.95,4.78]
[1729792053112,2.843,175.99,175.96,2.8433]
[1729792053407,12.27175554,176.01,175.95,4.78]
[1729792053608,12.27175554,176.03,175.95,4.78]
[1729792054002,2.8428,176.0,175.97,2.8431]
[1729792054809,2.8425,176.02,175.99,2.8428]
[1729792056407,2.8425,176.02,175.95,17.05175554]
[1729792056611,2.8423,176.03,176.0,2.8427]
[1729792056812,12.27175554,176.05,176.0,2.8427]
[1729792057706,12.27175554,176.03,175.95,4.78]
[1729792058408,2.8428,176.0,175.97,2.8432]
[1729792060209,12.27175554,176.03,175.93,2.3365]
[1729792060210,2.843,175.99,175.96,2.8433]
[1729792060410,12.27175554,176.0,175.95,4.72]
[1729792060915,12.27175554,176.0,175.96,2.8432]
[1729792061112,12.27175554,176.0,175.94,4.72]
[1729792061311,12.27175554,175.98,175.93,4.0203]
[1729792061520,12.27175554,175.98,175.93,2.8437]
[1729792062317,2.8434,175.96,175.93,2.8437]
[1729792062815,0.2587,176.03,175.92,4.72]
[1729792062816,2.843,175.99,175.92,4.72]
[1729792063009,12.27175554,176.0,175.92,4.72]
[1729792063317,2.8433,175.97,175.94,2.8436]
[1729792064705,2.8433,175.97,175.92,4.72]
[1729792064706,12.27175554,176.0,175.97,2.8432]
[1729792064904,12.27175554,176.03,175.93,2.5032]
[1729792065114,12.27175554,176.03,175.93,3.7553]
[1729792065308,4.72,176.05,175.93,16.02705554]
[1729792065519,12.27175554,176.05,175.93,16.02705554]
[1729792066815,2.8427,176.01,175.98,2.8429]
[1729792067010,12.27175554,176.01,175.93,3.7553]
[1729792067413,2.843,175.99,175.96,2.8432]
[1729792068122,2.843,175.99,175.97,2.8432]
[1729792071315,12.27175554,176.03,175.99,2.8428]
[1729792071521,12.27175554,176.05,175.99,2.8428]
[1729792073211,2.8426,176.01,175.99,2.8428]
[1729792079024,12.27175554,176.05,175.99,2.8428]
[1729792079218,2.8425,176.02,175.99,2.8428]
[1729792079423,12.27175554,176.05,176.0,1.42155261]
[1729792079424,12.27175554,176.03,176.0,1.42155261]
[1729792079621,12.27175554,176.03,175.96,4.72]
[1729792079820,2.8425,176.01,175.97,1.42160102]